bitfinex/quotes_ETHUSD_20250523
["timestamp","ask_amount","ask_price","bid_price","bid_amount"]
[1747976288251,3.71365384,2692.8,2692.4,26.773]
[1747976289292,3.71358121,2692.9,2692.4,26.773]
[1747976289585,3.71334312,2693.0,2692.4,30.4870956]
[1747976289889,3.71294315,2693.3,2692.4,30.48712794]
[1747976290191,3.71319324,2693.1,2692.5,3.73443071]
[1747976290365,3.7133424,2693.0,2692.5,0.0205]
[1747976290890,3.71369642,2692.8,2692.6,11.127]
[1747976291188,3.71353174,2692.9,2692.5,0.0205]
[1747976291374,3.71353174,2692.9,2692.6,11.127]
[1747976291762,3.71339355,2693.0,2692.6,11.127]
[1747976292685,3.71355737,2692.9,2692.6,11.127]
[1747976292889,3.71338423,2693.0,2692.6,11.127]
[1747976293263,3.71291723,2693.3,2692.6,11.127]
[1747976293462,3.71353153,2692.9,2692.6,11.127]
[1747976293689,3.71338361,2693.0,2692.6,11.127]
[1747976294052,9.2859,2693.4,2692.6,11.127]
[1747976294252,3.71341389,2693.0,2692.6,11.127]
[1747976295287,1.2859,2693.4,2692.6,11.127]
[1747976295492,3.71352073,2692.9,2692.6,11.127]
[1747976296198,3.71330379,2693.1,2692.6,11.127]
[1747976296359,3.71330379,2693.1,2692.7,26.734]
[1747976296558,3.71333085,2693.0,2692.7,26.734]
[1747976297272,4.9987968,2693.4,2692.8,0.0205]
[1747976297593,1.2859,2693.4,2692.8,0.0205]
[1747976297791,3.71346875,2692.9,2692.8,0.0205]
[1747976297993,3.71291723,2693.3,2692.7,26.734]
[1747976298202,9.2859,2693.4,2692.7,26.734]
[1747976298365,1.29986544,2693.3,2692.7,26.734]
[1747976298563,3.71341039,2693.0,2692.7,26.734]
[1747976299413,3.71325824,2693.1,2692.7,26.734]
[1747976299767,0.55,2694.2,2692.7,15.607]
[1747976300108,4.95929688,2693.4,2692.6,15.607]
[1747976300288,3.71384295,2692.7,2692.6,15.607]
[1747976300901,3.71402042,2692.5,2692.4,12.30578471]
[1747976301086,3.71402042,2692.5,2692.4,27.91278471]
[1747976301892,3.71402042,2692.5,2692.4,26.734]
[1747976304001,3.71396848,2692.6,2692.4,26.734]
[1747976304721,3.71376533,2692.7,2692.4,26.734]
[1747976305128,4.96021128,2692.8,2692.4,26.734]
[1747976305309,1.2465,2692.8,2692.4,26.734]
[1747976305524,3.71385708,2692.7,2692.4,26.734]
[1747976305925,3.71388249,2692.6,2692.4,26.734]
[1747976306795,3.71402042,2692.5,2692.4,26.734]
[1747976306997,3.71391865,2692.6,2692.4,26.734]
[1747976308354,1.2465,2692.8,2692.4,26.734]
[1747976308521,1.2256,2693.8,2692.5,0.03713669]
[1747976308854,3.71277938,2693.4,2692.8,3.71351349]
[1747976309147,3.71258712,2693.6,2693.0,3.71324613]
[1747976309349,4.93784797,2693.8,2692.9,26.736]
[1747976309350,3.712485,2693.7,2692.9,30.82081729]
[1747976309650,4.93784797,2693.8,2692.9,27.10735135]
[1747976309818,4.93784797,2693.8,2693.0,3.71324387]
[1747976310028,4.93784797,2693.8,2693.1,16.024]
[1747976310208,3.71258641,2693.6,2693.1,16.024]
[1747976310415,3.71258641,2693.6,2693.5,0.59213494]
[1747976310642,3.71258641,2693.6,2693.5,27.32713494]
[1747976311024,3.71258641,2693.6,2693.5,26.735]
[1747976312039,3.71250371,2693.6,2693.5,15.607]
[1747976315070,3.71250371,2693.6,2693.5,16.19872684]
[1747976316534,3.71250371,2693.6,2693.5,15.607]
[1747976317755,0.04662151,2693.9,2693.5,15.607]
[1747976317978,3.71250371,2693.6,2693.5,15.607]
[1747976325494,3.71277938,2693.4,2693.3,0.59172684]
[1747976325802,3.71277938,2693.4,2693.3,27.26972684]
[1747976326080,3.71277938,2693.4,2693.3,16.14472684]
[1747976326684,5.75252236,2693.4,2693.3,0.59172684]
[1747976327552,13.75252236,2693.4,2693.3,0.59172684]
[1747976327746,3.71319297,2693.1,2693.0,15.553]
[1747976327942,5.75391836,2693.1,2693.0,15.553]
[1747976329079,3.71346875,2692.9,2692.8,0.59172684]
[1747976330089,3.71374456,2692.7,2692.6,16.14572684]
[1747976335772,3.71374456,2692.7,2692.6,0.59172684]
[1747976337188,1.2857,2693.3,2692.6,0.59172684]
[1747976337396,3.71351039,2692.9,2692.6,0.59172684]
[1747976338291,1.2857,2693.3,2692.6,0.59172684]
[1747976338601,3.71354338,2692.9,2692.6,0.59172684]
[1747976338776,4.99867292,2693.3,2692.6,0.59172684]
[1747976338777,4.99874985,2693.3,2692.6,0.59172684]
[1747976339103,3.71333833,2693.0,2692.8,0.59172684]
[1747976339407,3.71327083,2693.1,2692.8,0.59172684]
[1747976339805,3.71311551,2693.2,2692.8,0.59172684]
[1747976340177,3.71311551,2693.2,2693.0,0.59172684]
[1747976340536,3.71271603,2693.5,2693.0,16.14772684]
[1747976340705,1.2984,2693.6,2693.0,16.14772684]
[1747976340871,3.71251095,2693.6,2693.0,16.14772684]
[1747976341203,1.2984,2693.8,2693.0,16.14772684]
[1747976341402,3.71293571,2693.3,2693.0,16.14772684]
[1747976341978,3.71293571,2693.3,2693.2,0.59172684]
[1747976343692,1.2984,2693.8,2693.2,0.59172684]
[1747976343895,3.71271838,2693.5,2693.2,11.71772684]
[1747976344687,3.71271838,2693.5,2693.3,0.59172684]
[1747976345288,3.71277938,2693.4,2693.3,0.59172684]
[1747976345987,3.71269272,2693.5,2693.3,0.59172684]
[1747976346387,3.71269272,2693.5,2693.4,0.59172684]
[1747976346817,0.04662151,2693.9,2693.4,0.59172684]
[1747976347026,0.04662151,2693.9,2693.5,15.554]
[1747976347204,0.04662151,2693.9,2693.5,19.26663501]
[1747976347540,0.04662151,2693.9,2693.8,0.59172684]
[1747976348211,0.04662151,2693.9,2693.8,11.71772684]
[1747976348922,0.04662151,2693.9,2693.8,11.126]
[1747976350221,0.04662151,2693.9,2693.8,14.83822807]
[1747976350409,0.04662151,2693.9,2693.8,11.126]
[1747976350730,0.04662151,2693.9,2693.8,14.83822807]
[1747976350899,0.04662151,2693.9,2693.8,15.80163586]
[1747976351401,0.05,2694.9,2694.3,3.71149343]
[1747976351602,3.76071769,2694.9,2694.4,42.698]
[1747976351819,0.05,2694.9,2694.4,16.02]
[1747976352025,3.71100279,2694.7,2694.5,42.696]
[1747976352219,3.71100279,2694.7,2694.6,15.551]
[1747976352539,3.71090554,2694.8,2694.6,15.551]
[1747976352697,3.71090554,2694.8,2694.6,15.9930171]
[1747976352897,3.76076158,2694.9,2694.6,15.9930171]
[1747976353326,3.71088819,2694.8,2694.6,15.9930171]
[1747976353525,3.71085052,2694.8,2694.6,15.9930171]
[1747976354105,3.76074531,2694.9,2694.6,15.9930171]
[1747976354516,3.71086741,2694.8,2694.6,15.9930171]
[1747976355640,0.05,2694.9,2694.6,15.9930171]
[1747976355844,3.71086356,2694.8,2694.6,15.9930171]
[1747976356511,3.76072323,2694.9,2694.6,15.9930171]
[1747976357618,3.76072323,2694.9,2694.6,15.551]
[1747976357811,0.05,2694.9,2694.6,15.551]
[1747976360651,0.05,2694.9,2694.6,19.2621004]
[1747976360955,0.05,2694.9,2694.6,15.551]
[1747976361165,0.05,2694.9,2694.7,0.4420171]
[1747976362130,0.05,2694.9,2694.6,15.9930171]
[1747976362939,3.76073336,2694.9,2694.6,15.9930171]
[1747976363531,0.05,2694.9,2694.6,15.9930171]
[1747976364743,3.70923806,2696.0,2694.7,1.52009708]
[1747976365054,3.70909172,2696.1,2695.4,3.70992139]
[1747976365231,3.70909172,2696.1,2695.5,42.623]
[1747976365821,3.70909172,2696.1,2695.5,43.0650171]
[1747976366069,3.70922718,2696.0,2695.5,43.0650171]
[1747976366411,3.75934709,2695.9,2695.5,43.0650171]
[1747976367262,0.05,2695.9,2695.5,43.0650171]
[1747976367569,0.05,2695.9,2695.6,0.4420171]
[1747976368828,3.75941856,2695.9,2695.6,0.4420171]
[1747976369030,0.05,2695.9,2695.6,0.4420171]
[1747976370770,3.75933725,2695.9,2695.7,26.604]
[1747976370972,3.75933725,2695.9,2695.8,11.117]
[1747976372953,3.75933725,2695.9,2695.7,15.487]
[1747976373270,3.75933725,2695.9,2695.8,11.117]
[1747976374629,3.70947399,2695.8,2695.7,15.487]
[1747976374934,4.91137399,2695.8,2695.7,15.487]
[1747976384577,0.05,2695.9,2695.7,15.487]
[1747976384748,0.05,2695.9,2695.8,11.15308894]
[1747976384949,0.05,2695.9,2695.8,26.602]
[1747976385188,0.05,2695.9,2695.7,0.52590779]
[1747976385189,3.70974922,2695.6,2695.5,16.4540171]
[1747976385333,3.70974922,2695.6,2695.5,31.9390171]
[1747976385537,5.00054922,2695.6,2695.5,31.497]
[1747976386179,3.70974922,2695.6,2695.5,31.497]
[1747976392053,5.02124922,2695.6,2695.5,31.497]
[1747976394506,5.89433552,2695.6,2695.5,31.94058722]
[1747976394857,5.89433552,2695.6,2695.5,16.45558722]
[1747976396701,5.89433552,2695.6,2695.5,0.44358722]
[1747976396702,13.89433552,2695.6,2695.5,0.44358722]
[1747976399020,3.71002448,2695.4,2695.3,0.44358722]
[1747976400379,13.02632448,2695.4,2695.3,0.44358722]
[1747976400580,13.57632448,2695.4,2695.3,0.44358722]
[1747976401117,13.02632448,2695.4,2695.3,0.44358722]
[1747976401286,11.71002448,2695.4,2695.3,0.44358722]
[1747976401617,3.71019729,2695.3,2695.2,11.117]
[1747976401936,3.71019729,2695.3,2695.2,26.551]
[1747976402473,3.71002448,2695.4,2695.2,27.14132695]
[1747976402715,3.71016213,2695.3,2695.2,27.14132695]
[1747976403321,3.71008641,2695.4,2695.2,27.14132695]
[1747976404001,3.71001322,2695.5,2695.2,27.14132695]
[1747976404326,3.70976391,2695.6,2695.2,27.14132695]
[1747976405616,3.70989304,2695.5,2695.2,27.14132695]
[1747976406023,3.70980078,2695.6,2695.2,26.551]
[1747976406384,3.70998225,2695.5,2695.2,26.551]
[1747976407925,3.70981122,2695.6,2695.2,26.551]
[1747976408145,3.70967056,2695.7,2695.2,26.551]
[1747976408425,3.70971964,2695.7,2695.2,26.551]
[1747976408628,0.05,2695.9,2695.2,26.551]
[1747976408929,3.75939597,2695.9,2695.6,0.59162356]
[1747976409086,3.70947399,2695.8,2695.7,26.551]
[1747976409291,0.05,2695.9,2695.7,26.551]
[1747976409490,0.05,2695.9,2695.8,3.74656666]
[1747976409726,0.05,2695.9,2695.8,0.52590779]
[1747976410027,0.05,2695.9,2695.6,16.59962356]
[1747976410247,3.7096116,2695.7,2695.6,16.008]
[1747976413612,3.7096116,2695.7,2695.6,16.59940487]
[1747976416022,3.7096116,2695.7,2695.6,16.008]
[1747976420510,3.7096116,2695.7,2695.6,16.59946225]
[1747976423135,3.7096116,2695.7,2695.6,0.59146225]
[1747976427228,4.45652078,2695.7,2695.6,0.59146225]
[1747976428337,3.70995043,2695.5,2695.3,2.8299915]
[1747976428537,3.70995043,2695.5,2695.4,15.382]
[1747976428752,3.70969267,2695.7,2695.4,15.382]
[1747976429261,3.70976105,2695.6,2695.4,15.382]
[1747976429566,3.70976105,2695.6,2695.5,11.116]
[1747976430278,3.70976105,2695.6,2694.9,3.71063059]
[1747976430279,1.2441,2695.5,2694.4,1.47398696]
[1747976430426,3.71002448,2695.4,2694.9,2.8299915]
[1747976430632,3.71002448,2695.4,2694.9,13.9459915]
[1747976430832,3.70991973,2695.5,2695.2,2.8299915]
[1747976431062,3.70965548,2695.7,2695.2,3.58103577]
[1747976431265,3.70965548,2695.7,2695.5,2.8299915]
[1747976431433,3.70965548,2695.7,2695.6,15.382]
[1747976433668,3.70965548,2695.7,2695.6,16.87876449]
[1747976434782,3.70951548,2695.8,2695.6,16.87876449]
[1747976435388,0.05,2695.9,2695.6,16.87876449]
[1747976435587,3.75936185,2695.9,2695.6,16.87876449]
[1747976436280,3.75936185,2695.9,2695.8,1.49676449]
[1747976438226,3.75936185,2695.9,2695.6,15.382]
[1747976438383,3.75936185,2695.9,2695.8,1.49676449]
[1747976439993,0.05,2695.9,2695.8,1.49676449]
[1747976441289,0.05,2695.9,2695.8,5.20623848]
[1747976441592,0.05,2695.9,2695.8,1.49676449]
[1747976443285,3.75933639,2695.9,2695.8,1.49676449]
[1747976443486,3.7096116,2695.7,2695.6,1.49676449]
[1747976443816,3.7096116,2695.7,2695.6,27.99176449]
[1747976444677,3.7096116,2695.7,2695.6,26.495]
[1747976444989,3.7096116,2695.7,2695.6,16.87676449]
[1747976445892,3.7096116,2695.7,2695.6,1.49676449]
[1747976446097,3.7096116,2695.7,2695.6,16.87676449]
[1747976447431,3.7096116,2695.7,2695.6,27.99176449]
[1747976448125,0.05,2695.9,2695.6,27.99176449]
[1747976448326,0.05,2695.9,2695.8,1.49676449]
[1747976450125,3.75933639,2695.9,2695.8,1.49676449]
[1747976450302,3.75933639,2695.9,2695.8,12.61176449]
[1747976450500,3.75933639,2695.9,2695.8,1.49676449]
[1747976450832,3.75933639,2695.9,2695.8,27.94076449]
[1747976451624,0.05,2695.9,2695.8,27.94076449]
[1747976452641,0.05,2695.9,2695.8,16.82576449]
[1747976453127,3.75933639,2695.9,2695.8,16.82576449]
[1747976453323,4.50619014,2695.9,2695.8,16.82576449]
[1747976454640,3.75933639,2695.9,2695.8,16.82576449]
[1747976455394,0.05,2695.9,2695.8,16.82576449]
[1747976456134,3.75933639,2695.9,2695.8,16.82576449]
[1747976456643,0.05,2695.9,2695.8,16.82576449]
[1747976457437,0.05,2695.9,2695.8,5.20623848]
[1747976457616,0.05,2695.9,2695.8,27.93876449]
[1747976461028,0.05,2695.9,2695.8,1.49676449]
[1747976461328,0.05,2695.9,2695.8,26.442]
[1747976461740,0.05,2695.9,2695.8,15.328]
[1747976461939,3.75933639,2695.9,2695.8,26.442]
[1747976462241,3.75933639,2695.9,2695.8,15.328]
[1747976462426,4.63466271,2695.9,2695.8,15.328]
[1747976464533,3.7096116,2695.7,2695.6,16.005]
[1747976464738,3.7096116,2695.7,2695.6,31.333]
[1747976465452,3.70953033,2695.8,2695.6,31.333]
[1747976465750,3.70950785,2695.8,2695.6,31.333]
[1747976466399,3.7096116,2695.7,2695.6,31.333]
[1747976466738,3.75935677,2695.9,2695.6,31.333]
[1747976466739,0.05,2695.9,2695.6,31.333]
[1747976467814,3.7594283,2695.9,2695.6,31.333]
[1747976468015,3.70947715,2695.8,2695.6,31.333]
[1747976468266,3.75935515,2695.9,2695.6,31.333]
[1747976468439,0.05,2695.9,2695.6,31.333]
[1747976469349,3.7593791,2695.9,2695.6,31.333]
[1747976469702,0.05,2695.9,2695.6,31.333]
[1747976470811,3.7096116,2695.7,2695.6,16.005]
[1747976471014,3.7096116,2695.7,2695.6,31.333]
[1747976471810,3.7096116,2695.7,2695.6,31.92500995]
[1747976473435,4.9966116,2695.7,2695.6,0.59200995]
[1747976473857,12.9966116,2695.7,2695.6,0.59200995]
[1747976474163,15.22222212,2695.7,2695.6,0.59200995]
[1747976474539,3.71043746,2695.1,2695.0,15.329]
[1747976474744,5.02883746,2695.1,2695.0,15.329]
[1747976475049,3.71057513,2695.0,2694.9,1.18353544]
[1747976475256,5.77107639,2695.0,2694.9,1.18353544]
[1747976475451,3.71071282,2694.9,2694.8,16.006]
[1747976475663,3.71098823,2694.7,2694.6,15.331]
[1747976477063,3.7112895,2694.5,2694.2,11.116]
[1747976477267,3.71122596,2694.6,2694.3,15.331]
[1747976477464,3.71127969,2694.5,2694.3,15.331]
[1747976477646,3.71117401,2694.6,2694.3,15.331]
[1747976477846,3.71126686,2694.5,2694.3,15.331]
[1747976479345,3.71117979,2694.6,2694.3,15.331]
[1747976481074,0.57711127,2694.9,2694.3,15.331]
[1747976481272,3.71039286,2695.2,2694.4,4.75373651]
[1747976481575,1.3227,2695.3,2694.4,0.5763]
[1747976481748,3.7106523,2695.0,2694.4,4.28762205]
[1747976481944,3.71071498,2694.9,2694.4,0.5763]
[1747976482148,3.71063098,2695.0,2694.4,4.28767837]
[1747976482838,3.71049688,2695.1,2694.5,3.71124473]
[1747976483081,3.71059181,2695.0,2694.4,4.28765827]
[1747976483388,3.7107951,2694.9,2694.4,0.5763]
[1747976484065,3.71059641,2695.0,2694.4,4.28768373]
[1747976484662,3.71080014,2694.9,2694.4,0.5763]
[1747976484866,3.71080014,2694.9,2694.4,4.28770062]
[1747976485175,3.71067228,2695.0,2694.4,4.28770062]
[1747976485351,3.71083671,2694.9,2694.5,0.3711]
[1747976485674,3.71083671,2694.9,2694.6,11.118]
[1747976486053,3.71062965,2695.0,2694.6,11.118]
[1747976486243,3.71072607,2694.9,2694.6,11.118]
[1747976486446,3.71063219,2695.0,2694.6,11.118]
[1747976486976,3.71073929,2694.9,2694.6,11.118]
[1747976487383,3.710806,2694.9,2694.6,11.118]
[1747976487942,3.71086495,2694.8,2694.6,11.118]
[1747976488593,3.71076912,2694.9,2694.6,11.118]
[1747976488760,3.71065194,2695.0,2694.6,11.118]
[1747976489166,4.99067258,2695.0,2694.2,4.28046172]
[1747976489481,3.71072633,2694.9,2694.5,11.119]
[1747976490257,3.71085696,2694.8,2694.5,11.119]
[1747976490459,3.71077866,2694.9,2694.5,11.119]
[1747976490658,3.71071282,2694.9,2694.4,11.119]
[1747976491345,3.71086801,2694.8,2694.4,11.119]
[1747976491545,3.71075759,2694.9,2694.4,11.119]
[1747976491847,1.28,2695.0,2694.0,16.5758]
[1747976492060,3.71114636,2694.6,2694.1,26.401]
[1747976492259,3.71114636,2694.6,2694.2,11.119]
[1747976493530,4.9906083,2695.0,2694.2,11.119]
[1747976493659,4.20988007,2694.9,2694.2,11.119]
[1747976493861,3.71099887,2694.7,2694.2,11.119]
[1747976495392,3.71099887,2694.7,2694.2,14.83067018]
[1747976495563,3.71090986,2694.8,2694.2,14.83067018]
[1747976496261,3.71090986,2694.8,2694.3,3.71152391]
[1747976497388,0.49906083,2694.9,2694.4,3.71135329]
[1747976497605,1.2025,2695.2,2694.4,0.5688]
[1747976497904,1.2875,2695.4,2695.0,3.71053064]
[1747976498061,1.2875,2695.4,2695.1,15.283]
[1747976498866,1.3119,2695.8,2695.1,18.99341945]
[1747976499064,3.70961576,2695.7,2695.1,18.99338975]
[1747976499608,1.3119,2695.8,2695.1,18.99337427]
[1747976499822,3.70964531,2695.7,2695.1,18.99337427]
[1747976500407,3.70975357,2695.6,2695.1,18.99337427]
[1747976500566,3.71008723,2695.4,2695.1,15.283]
[1747976500781,3.70993867,2695.5,2695.1,15.283]
[1747976501172,4.58291052,2695.6,2695.1,15.283]
[1747976501373,3.70979624,2695.6,2695.1,15.283]
[1747976502419,3.70961378,2695.7,2695.2,3.71029979]
[1747976502613,3.70961378,2695.7,2695.1,18.99338582]
[1747976502753,3.70983723,2695.6,2695.1,15.283]
[1747976503194,3.70991779,2695.5,2695.1,15.283]
[1747976503403,3.71010741,2695.4,2695.1,15.283]
[1747976503707,3.71008008,2695.4,2695.2,15.281]
[1747976504059,3.709903,2695.5,2695.2,15.281]
[1747976504576,3.70979561,2695.6,2695.2,15.281]
[1747976504779,3.70979561,2695.6,2695.2,15.87199467]
[1747976506176,3.70979561,2695.6,2695.3,0.59099467]
[1747976507355,4.45172609,2695.6,2695.3,0.59099467]
[1747976507666,3.71002448,2695.4,2695.3,0.59099467]
[1747976507860,3.71002448,2695.4,2695.3,15.87199467]
[1747976508560,1.2738,2695.5,2695.3,15.28]
[1747976508755,3.91160249,2695.4,2695.3,15.28]
[1747976508997,11.91160249,2695.4,2695.3,15.28]
[1747976513197,0.20157305,2695.4,2695.3,15.28]
[1747976513385,1.3294,2695.9,2695.3,15.28]
[1747976513587,3.70977545,2695.6,2695.3,15.28]
[1747976514304,3.71002448,2695.4,2695.3,15.28]
[1747976514506,1.2674,2695.5,2695.0,15.226]
[1747976514804,12.97787069,2695.1,2695.0,15.226]
[1747976515002,14.6466882,2695.1,2695.0,15.226]
[1747976519334,3.71103966,2694.7,2694.3,0.0697]
[1747976519542,8.0,2695.0,2694.4,15.227]
[1747976519847,3.71104837,2694.7,2694.4,26.345]
[1747976520229,8.0,2695.0,2694.4,26.345]
[1747976520394,3.71059142,2695.0,2694.4,30.05630118]
[1747976520790,1.2674,2695.1,2694.4,30.05630118]
[1747976521029,3.71031437,2695.2,2694.6,3.71108325]
[1747976521191,9.2238,2695.6,2694.6,3.71108325]
[1747976521500,0.05,2695.9,2695.1,3.71035154]
[1747976521831,8.0,2695.7,2695.3,0.0697]
[1747976522235,0.05,2695.9,2695.4,3.70990772]
[1747976522421,0.05,2695.9,2695.3,0.0697]
[1747976522591,3.75944141,2695.9,2695.3,3.77981198]
[1747976522792,3.7094993,2695.8,2695.3,0.0697]
[1747976523202,3.70980377,2695.6,2695.3,0.0697]
[1747976523702,3.70964361,2695.7,2695.3,0.0697]
[1747976523892,3.7095625,2695.8,2695.3,0.0697]
[1747976524495,0.05,2695.9,2695.3,0.0697]
[1747976524925,0.05,2695.9,2695.5,3.70978163]
[1747976525108,0.05,2695.9,2695.7,0.0697]
[1747976525307,0.05,2695.9,2695.8,15.226]
[1747976526238,3.75933639,2695.9,2695.8,15.226]
[1747976526527,0.05,2695.9,2695.8,15.226]
[1747976526729,0.05,2695.9,2695.8,15.2957]
[1747976528295,0.05,2695.9,2695.8,23.2957]
[1747976529827,0.05,2695.9,2695.8,27.00517399]
[1747976530333,0.05,2696.9,2696.4,0.0697]
[1747976530533,0.05,2696.9,2695.9,8.0]
[1747976530534,0.05,2696.9,2696.6,8.0697]
[1747976530836,0.05,2696.9,2696.8,8.0]
[1747976532233,0.05,2696.9,2696.5,16.007]
[1747976532409,3.70823599,2696.7,2696.6,23.221]
[1747976533236,0.05,2696.9,2696.6,23.221]
[1747976533401,3.70823599,2696.7,2696.6,23.221]
[1747976535850,3.70823599,2696.7,2696.6,23.22]
[1747976536044,4.96593599,2696.7,2696.6,23.22]
[1747976536332,5.83833983,2696.7,2696.6,23.22]
[1747976537137,3.70945648,2695.9,2695.8,0.0697]
[1747976537344,3.70945648,2695.9,2695.8,15.22]
[1747976537544,3.70945648,2695.9,2695.8,23.22]
[1747976538605,3.70925073,2696.0,2695.9,8.0]
[1747976539239,3.70951951,2695.8,2695.7,8.0]
[1747976539546,3.70951951,2695.8,2695.7,34.333]
[1747976540743,3.70951951,2695.8,2695.7,23.22]
[1747976541045,3.70988684,2695.5,2695.4,8.58828889]
[1747976541245,3.70988684,2695.5,2695.4,15.75828889]
[1747976541543,3.70988684,2695.5,2695.4,0.58828889]
[1747976541746,3.71002448,2695.4,2695.3,16.003]
[1747976541950,4.75975809,2695.4,2695.3,16.003]
[1747976542247,4.75975809,2695.4,2695.3,24.003]
[1747976543022,3.71002448,2695.4,2695.3,24.003]
[1747976543835,3.71029979,2695.2,2695.1,15.17]
[1747976545830,3.71029979,2695.2,2695.1,23.17]
[1747976547555,3.71016213,2695.3,2695.2,8.0]
[1747976552938,3.71071282,2694.9,2694.8,19.70428889]
[1747976553137,3.71071282,2694.9,2694.8,34.87828889]
[1747976553337,3.71071282,2694.9,2694.8,15.76228889]
[1747976553535,4.88481282,2694.9,2694.8,23.76228889]
[1747976553850,3.71098823,2694.7,2694.6,16.004]
[1747976554230,3.71098823,2694.7,2694.6,24.004]
[1747976558136,4.88486324,2694.9,2694.7,8.0]
[1747976558465,3.70929345,2696.0,2694.7,8.0]
[1747976558466,1.2249,2695.2,2694.8,8.0]
[1747976558631,3.7100577,2695.4,2694.8,8.0]
[1747976558632,1.2387,2695.4,2695.0,8.0]
[1747976558832,3.71003284,2695.4,2695.0,8.0]
[1747976559239,3.70969746,2695.7,2695.2,8.0]
[1747976559443,1.56312935,2695.9,2695.2,19.118]
[1747976559862,3.71016213,2695.3,2695.2,19.118]
[1747976560165,3.71022103,2695.3,2695.0,8.0]
[1747976560369,3.70987714,2695.6,2695.0,8.0]
[1747976560530,0.49508771,2695.6,2695.0,8.0]
[1747976560736,1.241,2695.7,2695.0,8.0]
[1747976561066,3.71043746,2695.1,2695.0,8.0]
[1747976563938,3.71016213,2695.3,2695.0,8.0]
[1747976564167,3.71031835,2695.2,2695.0,8.0]
[1747976564864,3.71043746,2695.1,2695.0,8.0]
[1747976566164,4.45251163,2695.1,2695.0,8.0]
[1747976569774,3.71043746,2695.1,2695.0,8.0]
[1747976570274,3.71036262,2695.2,2695.0,8.0]
[1747976570461,3.71043746,2695.1,2695.0,8.0]
[1747976576280,4.84925306,2695.4,2695.0,8.0]
[1747976576281,3.71023949,2695.3,2695.0,8.0]
[1747976576575,3.71003463,2695.4,2695.0,8.45433666]
[1747976576779,3.71003463,2695.4,2695.0,8.0]
[1747976576980,3.71028537,2695.3,2695.0,8.0]
[1747976577143,3.71031134,2695.2,2695.0,8.0]
[1747976577348,3.71031134,2695.2,2695.1,0.58828889]
[1747976580283,3.71043746,2695.1,2695.0,8.58828889]
[1747976581383,3.71043746,2695.1,2695.0,0.58828889]
[1747976581585,3.71043746,2695.1,2694.8,15.128]
[1747976581586,3.71071282,2694.9,2694.8,15.71628889]
[1747976581747,4.81921282,2694.9,2694.8,15.71628889]
[1747976581945,5.67219218,2694.9,2694.8,23.71628889]
[1747976582176,5.67219218,2694.9,2694.8,15.71628889]
[1747976582889,5.67219218,2694.9,2694.8,23.71628889]
[1747976583075,5.67219218,2694.9,2694.8,8.0]
[1747976586778,5.67219218,2694.9,2694.4,0.58828889]
[1747976586779,3.71126368,2694.5,2694.4,0.58828889]
[1747976586967,4.83636368,2694.5,2694.4,0.58828889]
[1747976587477,4.83636368,2694.5,2694.1,0.05]
[1747976587478,3.71167693,2694.2,2694.1,0.05]
[1747976590603,3.71150253,2694.4,2694.1,8.05]
[1747976592129,3.71150253,2694.4,2694.1,19.17]
[1747976593432,3.71127805,2694.5,2694.1,19.17]
[1747976593873,3.71151523,2694.4,2694.1,19.17]
[1747976594076,3.71076963,2694.9,2694.1,19.17]
[1747976594674,3.71140086,2694.5,2694.1,19.17]
[1747976594886,3.71140192,2694.4,2694.1,19.17]
[1747976595087,3.71140192,2694.4,2694.1,19.76050608]
[1747976595287,3.71155564,2694.3,2694.1,19.76050608]
[1747976595484,3.71161472,2694.3,2694.1,19.76050608]
[1747976595684,3.71167693,2694.2,2694.1,19.76050608]
[1747976595973,3.71167693,2694.2,2694.1,34.89250608]
[1747976596174,3.71167693,2694.2,2694.1,23.77150608]
[1747976596375,3.71167693,2694.2,2694.1,23.181]
[1747976597677,3.71154126,2694.3,2694.1,23.181]
[1747976598018,3.71142661,2694.4,2694.1,23.181]
[1747976599412,3.7115564,2694.3,2694.1,23.181]
[1747976599916,3.71150418,2694.4,2694.1,23.181]
[1747976600916,3.71154391,2694.3,2694.1,23.181]
[1747976601941,3.71167693,2694.2,2694.1,23.181]
[1747976602986,3.71159409,2694.3,2694.1,23.181]
[1747976603390,3.71167693,2694.2,2694.1,23.181]
[1747976606320,3.71160005,2694.3,2694.1,23.181]
[1747976606511,3.71167693,2694.2,2694.1,23.181]
[1747976607810,3.71157433,2694.3,2694.1,23.181]
[1747976608010,3.71142877,2694.4,2694.1,23.181]
[1747976608907,3.71130871,2694.5,2694.1,23.181]
[1747976609755,3.71130871,2694.5,2694.1,24.52255035]
[1747976609942,1.0277,2694.9,2694.1,23.77150608]
[1747976610110,4.73846795,2694.9,2694.1,23.77150608]
[1747976610305,3.71134156,2694.5,2694.1,23.77150608]
[1747976610535,3.71118528,2694.6,2694.1,23.77150608]
[1747976611063,3.71118528,2694.6,2694.3,1.19050608]
[1747976611347,1.0277,2694.9,2694.3,1.19050608]
[1747976611647,3.71140125,2694.5,2694.3,1.19050608]
[1747976612557,3.71140125,2694.5,2694.4,0.59050608]
[1747976613333,3.71140125,2694.5,2694.4,8.59050608]
[1747976615823,3.71108628,2694.7,2694.4,8.59050608]
[1747976616439,3.71114783,2694.6,2694.4,8.59050608]
[1747976616639,3.71114783,2694.6,2694.4,8.0]
[1747976618465,3.71068363,2695.0,2694.4,8.0]
[1747976618627,6.0,2695.4,2694.5,0.43405515]
[1747976618827,3.71059689,2695.0,2694.7,8.0]
[1747976619029,1.0364,2695.8,2694.9,8.0]
[1747976619234,3.71002482,2695.4,2695.1,8.0]
[1747976619440,3.7099645,2695.5,2695.3,8.0]
[1747976619635,3.7099645,2695.5,2695.4,19.121]
[1747976619864,3.70957294,2695.8,2695.5,8.0]
[1747976620072,3.70937337,2695.9,2695.5,8.0]
[1747976620264,3.70957095,2695.8,2695.6,15.081]
[1747976620561,3.7096116,2695.7,2695.6,15.081]
[1747976621860,3.70944483,2695.9,2695.6,15.081]